Cogmind - Beta 11 @@@ ROGUE MODE // 2022.04.21 @ 03:10:39 // Winter2019/RPGLIKE Player: Torako Result: Destroyed by God Mode with Slug Cannon Performance ------------- Evolutions (5) 2500 Regions Visited (21) 4200 Robots Destroyed (265) 1325 Value Destroyed (10205) 10205 Prototype IDs (35) 700 Alien Tech Used (0) 0 Bonus (4538) 4538 TOTAL SCORE: 23468 Bonus ------- High Alert Combat Kills 1517 Follower Combat Kills 1021 Entered Garrisons 200 Used RIF Installer 500 Network Hubs Disabled 200 Built Enhanced Grunts 300 A7 Reached Mainframe 300 Met R17 at Cetus 500 Cogmind --------- Core Integrity 0/1500 Matter 221/300 Energy 170/170 System Corruption 1% Temperature Warm (176) Movement Flying (29) Location -5/Warlord Parts ------- > --- POWER (1) -------- Light Neutrino Core > --- PROPULSION (4) --- Cooled Cesium-ion Thruster Cooled Cesium-ion Thruster Cooled Cesium-ion Thruster Cooled Cesium-ion Thruster > --- UTILITY (9) ------ Advanced Weight Redist. System Improved Signal Interpreter Microactuators Advanced Actuator Array Experimental Phase Shifter > --- WEAPON (3) ------- Phasing Sabre Phasing Sabre Phasing Sabre > --- INVENTORY (2) ---- EMDS Peak State ------------ > --- POWER ------------ Light Neutrino Core > --- PROPULSION ------- Cooled Cesium-ion Thruster Cooled Cesium-ion Thruster Cooled Cesium-ion Thruster Cooled Cesium-ion Thruster > --- UTILITY ---------- Advanced Weight Redist. System Improved Signal Interpreter Improved Melee Analysis Suite Improved Melee Analysis Suite Microactuators Advanced Actuator Array Improved Reaction Control System Experimental Phase Shifter Layered Medium Armor Plating > --- WEAPON ----------- Phasing Sabre Phasing Sabre Phasing Sabre > --- INVENTORY -------- EMDS [Rating: 96] Favorites ----------- Power Cooled Ion Engine Engine Cooled Ion Engine Power Core Micro Fission Core Propulsion Improved VTOL Module Treads Light Treads Hover Unit Hover Unit Flight Unit Improved VTOL Module Utility Microactuators Device Microactuators Processor Improved Signal Interpreter Hackware Relay Coupler [NC] Protection Improved Power Shielding Weapon Phasing Sabre Energy Cannon Beam Cannon Ballistic Gun Assault Rifle Ballistic Cannon Magnetic Acceleration Cannon Special Weapon Remote Datajack Impact Weapon Heavy Flail Slashing Weapon Phasing Sabre Piercing Weapon Makeshift Spear Special Melee Weapon Datajack Build | -11 -10 -10 -9 -9 -8 -7 -7 -7 -7 -7 -7 -6 -6 -6 -6 -6 -6 -5 -5 -5 -5 ------- Run | Scr Mat Min Mat Min Mat Fac Gar Fac Low Low Zio Pro Fac Ext Cet Arc Hub Fac Upp Upp War Slots Evolved 13 | . 3 1 4 . 1 . 1 2 . . . . . 1 . . . . . . . Power . | . . . . . . . . . . . . . . . . . . . . . . Propulsion 3 | . 1 . 1 . . . . 1 . . . . . . . . . . . . . Utility 8 | . 1 1 2 . 1 . 1 1 . . . . . 1 . . . . . . . Weapon 2 | . 1 . 1 . . . . . . . . . . . . . . . . . . Parts Attached 120 | 4 13 3 18 2 13 6 7 17 2 1 4 1 5 9 2 . 5 6 1 . 1 Power 9 | 1 2 . 3 . . . 1 . . . . 1 . . . . . 1 . . . Engine 6 | 1 1 . 3 . . . 1 . . . . . . . . . . . . . . Core 3 | . 1 . . . . . . . . . . 1 . . . . . 1 . . . Reactor . | . . . . . . . . . . . . . . . . . . . . . . Propulsion 22 | 1 3 . 5 . 1 1 1 5 . . . . . 1 . . . 4 . . . Treads 1 | 1 . . . . . . . . . . . . . . . . . . . . . Leg . | . . . . . . . . . . . . . . . . . . . . . . Wheel . | . . . . . . . . . . . . . . . . . . . . . . Hover 1 | . 1 . . . . . . . . . . . . . . . . . . . . Flight 20 | . 2 . 5 . 1 1 1 5 . . . . . 1 . . . 4 . . . Utility 66 | 1 4 3 7 2 12 5 3 6 2 1 2 . 5 5 2 . 3 1 1 . 1 Device 34 | 1 2 1 3 . 5 3 2 2 2 . 2 . 4 3 . . 2 . 1 . 1 Storage . | . . . . . . . . . . . . . . . . . . . . . . Processor 9 | . 1 1 1 . 2 1 . . . 1 . . . 2 . . . . . . . Hackware 2 | . . . . . 1 . . 1 . . . . . . . . . . . . . Protection 21 | . 1 1 3 2 4 1 1 3 . . . . 1 . 2 . 1 1 . . . Artifact . | . . . . . . . . . . . . . . . . . . . . . . Weapon 23 | 1 4 . 3 . . . 2 6 . . 2 . . 3 . . 2 . . . . Energy Gun . | . . . . . . . . . . . . . . . . . . . . . . Energy Cannon 2 | . 2 . . . . . . . . . . . . . . . . . . . . Ballistic Gun 3 | 1 2 . . . . . . . . . . . . . . . . . . . . Ballistic Cannon 1 | . . . . . . . . . . . . . . . . . 1 . . . . Launcher . | . . . . . . . . . . . . . . . . . . . . . . Special Weapon 1 | . . . . . . . . 1 . . . . . . . . . . . . . Impact Weapon 2 | . . . . . . . . 2 . . . . . . . . . . . . . Slashing Weapon 11 | . . . 2 . . . 2 2 . . 1 . . 3 . . 1 . . . . Piercing Weapon 2 | . . . 1 . . . . . . . 1 . . . . . . . . . . Special Melee Weapon 1 | . . . . . . . . 1 . . . . . . . . . . . . . Unidentified Prototypes 6 | . . 1 1 . . . . . . . . . . . 1 . 2 1 . . . Parts Lost 7 | . 1 . . . . . . . . . . . . 3 . . . 1 . . 2 Power 2 | . 1 . . . . . . . . . . . . . . . . 1 . . . Propulsion 1 | . . . . . . . . . . . . . . 1 . . . . . . . Utility 4 | . . . . . . . . . . . . . . 2 . . . . . . 2 Weapon . | . . . . . . . . . . . . . . . . . . . . . . Highest Loss Streak 3 | . 1 . . . . . . . . . . . . 3 . . . 1 . . 2 To Critical Strikes 2 | . . . . . . . . . . . . . . 2 . . . . . . . Average Slot Usage (%) 98 | . 90 100 97 100 99 98 99 97 91 97 99 100 100 99 100 100 100 99 100 100 98 Engine 4 | . 15 . 3 8 7 7 6 6 6 6 6 5 . . . . . . . . . Core 3 | . 1 12 5 . . . . . . . . . 6 5 5 5 5 4 5 5 5 Hover 1 | . 15 . . . . . . . . . . . . . . . . . . . . Flight 21 | . 2 25 24 25 23 23 22 24 25 25 25 25 25 24 23 23 23 23 23 23 23 Device 27 | . 17 12 14 16 27 29 32 30 19 25 28 37 37 33 29 29 29 29 29 29 28 Processor 9 | . 7 11 6 . 7 1 7 6 6 10 12 12 10 9 17 17 17 17 17 17 16 Protection 7 | . . 12 18 25 7 13 7 7 9 6 4 . 1 5 5 5 5 5 5 5 5 Ballistic Gun 2 | . 22 25 1 . . . . . . . . . . . . . . . . . . Slashing Weapon 13 | . . . 13 16 15 15 16 13 12 12 13 18 18 17 17 17 17 17 17 17 17 Piercing Weapon 2 | . . . 9 8 7 7 5 . . . 2 . . . . . . . . . . Naked Turns . | . . . . . . . . . . . . . . . . . . . . . . Heaviest Build 41 | 6 12 11 18 18 32 33 27 35 35 35 35 34 32 36 31 31 37 40 41 41 41 Greatest Support 48 | 8 13 13 24 23 29 36 30 35 35 35 35 35 44 44 43 43 43 48 48 48 48 Greatest Overweight (x) 1 | 1 1 . . . 1 . . . . . . . . 1 . . . . . . 1 Average Overweight (x) . | . . . . . . . . . . . . . . . . . . . . . . Largest Inventory Capacity 2 | . 2 2 2 2 2 2 2 2 2 2 2 2 2 2 2 2 2 2 2 2 2 Average Capacity 1 | . 1 2 2 2 2 2 2 2 2 2 2 2 2 2 2 2 2 2 2 2 2 Most Carried 2 | . 2 2 2 2 2 2 2 2 2 2 2 2 2 2 2 1 2 2 2 2 2 Average Carried 1 | . 1 1 1 1 1 1 1 1 2 2 1 1 1 1 1 1 1 2 2 2 2 Final Capacity 2 | . 2 2 2 2 2 2 2 2 2 2 2 2 2 2 2 2 2 2 2 2 2 Final Carried 2 | . 2 2 2 2 2 2 2 2 2 2 . 2 2 1 1 1 2 2 2 2 2 Class Distribution -------------------- 34% | Hacker-Scout 16% | Hacker-Sprinter 12% | Hacker-Ninja 11% | Scout 9% | Commander-Sprinter 5% | Scavenger-Scout 3% | Skirmisher Dominant Class ---------------- Scout | -10/Materials Scavenger-Scout | -10/Mines Scout | -9/Materials Hacker-Scout | -9/Mines Hacker-Scout | -8/Materials Hacker-Ninja | -7/Factory Hacker-Ninja | -7/Garrison Hacker-Ninja | -7/Factory Hacker-Scout | -7/Lower Caves Hacker-Scout | -7/Lower Caves Hacker-Scout | -7/Zion Hacker-Scout | -6/Proximity Caves Hacker-Scout | -6/Factory Commander-Sprinter | -6/Extension Hacker-Sprinter | -6/Cetus Commander-Sprinter | -6/Archives Commander-Sprinter | -6/Hub_04(d) Hacker-Sprinter | -5/Factory Hacker-Sprinter | -5/Upper Caves Hacker-Sprinter | -5/Upper Caves Hacker-Sprinter | -5/Warlord Resources | -11 -10 -10 -9 -9 -8 -7 -7 -7 -7 -7 -7 -6 -6 -6 -6 -6 -6 -5 -5 -5 -5 ----------- Run | Scr Mat Min Mat Min Mat Fac Gar Fac Low Low Zio Pro Fac Ext Cet Arc Hub Fac Upp Upp War Matter Collected 1882 | 273 470 36 219 20 130 21 109 140 50 10 40 10 62 101 26 . 69 70 10 . 16 Remotely . | . . . . . . . . . . . . . . . . . . . . . . Salvage Created 12424 | 92 700 44 1893 444 731 21 634 1258 . 74 564 709 1537 935 532 311 1111 613 111 . 110 Parts 627 | 3 54 5 115 24 47 3 38 74 2 4 27 23 58 46 27 9 39 22 2 . 5 Haulers Intercepted 16 | . 1 . 6 . 1 . . 4 . . . . 1 1 . . 2 . . . . Recyclers Shooed . | . . . . . . . . . . . . . . . . . . . . . . Parts Field Recycled . | . . . . . . . . . . . . . . . . . . . . . . Retrieved Matter . | . . . . . . . . . . . . . . . . . . . . . . Parts Self-Destructed 29 | . . . . . . . . . . 1 . 25 . . . . . . 3 . . Prevented . | . . . . . . . . . . . . . . . . . . . . . . Kills | -11 -10 -10 -9 -9 -8 -7 -7 -7 -7 -7 -7 -6 -6 -6 -6 -6 -6 -5 -5 -5 -5 ------- Run | Scr Mat Min Mat Min Mat Fac Gar Fac Low Low Zio Pro Fac Ext Cet Arc Hub Fac Upp Upp War Combat Hostiles Destroyed 198 | . 17 3 33 11 11 . 17 21 1 1 3 8 20 13 9 3 14 9 3 . 1 Melee 176 | . . . 33 11 11 . 17 19 1 1 3 8 20 13 9 3 14 9 3 . 1 Guns 20 | . 17 3 . . . . . . . . . . . . . . . . . . . Classes Destroyed 20 | 2 6 . 3 . 1 . 3 . 1 . 3 1 . . . . . . . . . Worker 7 | . 1 . 1 . 1 . . . . . . . 2 . . . 2 . . . . Builder 3 | . 1 . . 1 . . . . . . . . . 1 . . . . . . . Tunneler 2 | 1 . . . 1 . . . . . . . . . . . . . . . . . Hauler 16 | . 1 . 6 . 1 . . 4 . . . . 1 1 . . 2 . . . . Recycler 3 | 1 . . 1 1 . . . . . . . . . . . . . . . . . Operator 5 | . . . 3 . . . . . . . . . 1 . . . 1 . . . . Watcher 24 | . 2 . 5 . 4 1 . 3 . . . . 3 1 1 . 1 3 . . . Swarmer 33 | . 6 3 4 . 3 . . 5 . . . . . 2 2 . 3 2 3 . . Cutter 3 | . . . . . . . 3 . . . . . . . . . . . . . . Grunt 74 | . 11 . 18 8 . . 8 4 . . . 2 11 3 . . 4 5 . . . Brawler 7 | . . . . . . . 4 . . . . 1 1 . . . . 1 . . . Duelist 4 | . . . 2 1 . . . . . . . . 1 . . . . . . . . Sentry 45 | . . . 9 2 6 . 1 7 . . . . 4 7 . 3 5 1 . . . Specialist 2 | . . . . . . . . . . . . 2 . . . . . . . . . Hunter 12 | . . . . . 2 . . 3 . 1 . 1 2 . 2 . 1 . . . . Programmer 5 | . . . . . . . 1 2 . . . 1 1 . . . . . . . . Behemoth 2 | . . . . . . . . . . . . 1 . 1 . . . . . . . Cetus Guard 5 | . . . . . . . . . . . . . . . 5 . . . . . . Lightning 1 | . . . . . . . . . . . . . . . . . 1 . . . . Zionite 7 | . . . . . . . . . . . 7 . . . . . . . . . . Tinkerer 2 | . . . . . . . . . . . 2 . . . . . . . . . . Thief 1 | . . . . . . . . . 1 . . . . . . . . . . . . Thug 1 | . . . . . . . . . . . . . . . . . . . . . 1 Butcher 1 | . . . . . . . . . . . 1 . . . . . . . . . . Marauder 2 | . . . . . . . . . . . 2 . . . . . . . . . . Best Kill Streak 10 | 2 4 3 7 3 7 1 6 10 1 1 7 6 5 5 4 3 7 7 3 . 1 Combat Bots Only 6 | . 4 3 6 2 5 . 6 3 1 1 1 6 4 4 4 3 5 6 3 . 1 Max Kills in Single Turn 2 | 1 1 1 1 1 1 1 1 1 1 1 1 1 1 1 2 1 1 1 1 . 1 Gunslinging . | . . . . . . . . . . . . . . . . . . . . . . Exploded . | . . . . . . . . . . . . . . . . . . . . . . Melee 2 | . . . 1 1 1 . 1 1 1 1 1 1 1 1 2 1 1 1 1 . 1 Uniques/NPCs Destroyed . | . . . . . . . . . . . . . . . . . . . . . . Combat | -11 -10 -10 -9 -9 -8 -7 -7 -7 -7 -7 -7 -6 -6 -6 -6 -6 -6 -5 -5 -5 -5 -------- Run | Scr Mat Min Mat Min Mat Fac Gar Fac Low Low Zio Pro Fac Ext Cet Arc Hub Fac Upp Upp War Damage Taken 9678 | . 646 181 620 549 169 . 459 983 29 77 396 612 789 475 601 188 762 140 23 . 1979 Core 7416 | . 528 126 459 410 125 . 341 707 23 60 254 510 653 371 476 147 621 112 12 . 1481 Absorbed by Shields 113 | . . . . . . . 8 . . . . . . 47 48 10 . . . . . Redirected to Core 5237 | . 367 85 327 223 76 . 274 535 23 31 166 378 479 247 317 101 418 95 12 . 1083 Redirected to Shielding 226 | . . 25 64 72 . . . . . . . . . 3 36 13 13 . . . . Regen/Repaired (Parts) 129 | . . . 48 . . . . 81 . . . . . . . . . . . . . Core Remaining (%) 84 | 100 . 67 . 100 91 . . . . . . 49 . . . . 98 . . . . Volleys Fired 116 | 11 95 7 1 . . . . . . . . . . . . . 2 . . . . Largest 2 | 1 2 2 1 . . . . . . . . . . . . . 1 . . . . Hottest 53 | 20 40 40 20 . . . . . . . . . . . . . 53 . . . . Shots Fired 143 | 11 115 14 1 . . . . . . . . . . . . . 2 . . . . Gun 141 | 11 115 14 1 . . . . . . . . . . . . . . . . . . Cannon 2 | . . . . . . . . . . . . . . . . . 2 . . . . Launcher . | . . . . . . . . . . . . . . . . . . . . . . Special . | . . . . . . . . . . . . . . . . . . . . . . Kinetic 143 | 11 115 14 1 . . . . . . . . . . . . . 2 . . . . Thermal . | . . . . . . . . . . . . . . . . . . . . . . Explosive . | . . . . . . . . . . . . . . . . . . . . . . Electromagnetic . | . . . . . . . . . . . . . . . . . . . . . . Robot Hit Streak 9 | 8 9 3 . . . . . . . . . . . . . . . . . . . Robot Miss Streak 4 | 1 4 3 1 . . . . . . . . . . . . . . . . . . Penetration Max . | . . . . . . . . . . . . . . . . . . . . . . Secondary Targets 2 | . 1 1 . . . . . . . . . . . . . . . . . . . Max Gunslinging Chain 1 | . 1 1 . . . . . . . . . . . . . . . . . . . Shots Hit Robots 788 | 10 74 6 115 48 37 2 44 77 3 3 49 42 80 37 45 11 69 22 4 . 10 Core Hits 309 | 3 34 3 46 16 17 1 24 28 1 1 17 11 30 17 16 4 22 11 3 . 4 Critical Kills 1 | . 1 . . . . . . . . . . . . . . . . . . . . Critical Parts Destroyed 1 | . . . . . . . . 1 . . . . . . . . . . . . . Critical Strikes 71 | . 1 . 14 5 2 . 4 9 . . 6 5 5 4 6 1 7 2 . . . Destroy 1 | . 1 . . . . . . . . . . . . . . . . . . . . Smash 2 | . . . . . . . . 2 . . . . . . . . . . . . . Sever 59 | . . . 10 5 2 . 2 7 . . 3 5 5 4 6 1 7 2 . . . Impale 9 | . . . 4 . . . 2 . . . 3 . . . . . . . . . . Melee Attacks 1010 | . . . 149 65 56 5 62 117 5 4 69 54 147 50 48 13 85 43 9 3 26 Impact 19 | . . . . . . . . 19 . . . . . . . . . . . . . Slashing 860 | . . . 110 55 43 2 21 97 5 4 45 54 147 50 48 13 85 43 9 3 26 Piercing 130 | . . . 39 10 13 3 41 . . . 24 . . . . . . . . . . Sneak Attacks 51 | . . . 14 4 2 . 3 8 . . 3 . 7 4 . . 5 1 . . . Combat Hostiles 8 | . . . 1 . . . 3 . . . . . 2 1 . . . 1 . . . Follow-up Attacks 210 | . . . 30 12 16 . 12 23 . . 15 14 27 10 18 1 22 4 1 . 5 Damage Inflicted 33815 | 129 986 79 4543 1691 1366 90 1687 3528 137 125 2058 2170 4186 2250 2335 580 3990 1157 240 . 488 Guns 1194 | 129 986 79 . . . . . . . . . . . . . . . . . . . Cannons . | . . . . . . . . . . . . . . . . . . . . . . Explosions 216 | . . . . . . . . . . . . . . . . . 216 . . . . Melee 32305 | . . . 4543 1691 1366 90 1687 3528 137 125 2058 2170 4186 2150 2335 580 3774 1157 240 . 488 Ramming 100 | . . . . . . . . . . . . . . 100 . . . . . . . Kinetic 1194 | 129 986 79 . . . . . . . . . . . . . . . . . . . Thermal 16 | . . . . . . . . . . . . . . . . . 16 . . . . Explosive . | . . . . . . . . . . . . . . . . . . . . . . Electromagnetic 200 | . . . . . . . . . . . . . . . . . 200 . . . . Impact 391 | . . . . . . . . 391 . . . . . . . . . . . . . Slashing 28461 | . . . 3408 1546 1165 . 571 3137 137 125 1292 2170 4186 2150 2335 580 3774 1157 240 . 488 Piercing 3453 | . . . 1135 145 201 90 1116 . . . 766 . . . . . . . . . . Highest Corruption 6 | . . . . . . . . . . . . 1 2 2 2 2 6 . . . 1 Average Corruption 2 | . . . . . . . . . . . . 1 1 2 2 2 2 . . . 1 Corruption Purged . | . . . . . . . . . . . . . . . . . . . . . . Corruption Blocked . | . . . . . . . . . . . . . . . . . . . . . . Effects 22 | . . . . . . . . . . . . . 5 10 1 1 5 . . . . Message Errors 8 | . . . . . . . . . . . . . 2 2 . 1 3 . . . . Matter Fused 6 | . . . . . . . . . . . . . 2 2 1 . 1 . . . . Heat Flow Errors 2 | . . . . . . . . . . . . . . 1 . . 1 . . . . Energy Discharges 2 | . . . . . . . . . . . . . 1 1 . . . . . . . Parts Rejected 1 | . . . . . . . . . . . . . . 1 . . . . . . . Data Loss (minor) 3 | . . . . . . . . . . . . . . 3 . . . . . . . Overload Shots . | . . . . . . . . . . . . . . . . . . . . . . Overflow Damage 1755 | . . . 371 105 . . 7 210 . . 122 30 374 123 18 . 291 75 24 . 5 Projectiles . | . . . . . . . . . . . . . . . . . . . . . . Explosions 4 | . . . . . . . . . . . . . . . . . 4 . . . . Melee 1751 | . . . 371 105 . . 7 210 . . 122 30 374 123 18 . 287 75 24 . 5 Knockbacks 2 | . . . . . . . . 2 . . . . . . . . . . . . . Impact 2 | . . . . . . . . 2 . . . . . . . . . . . . . Kinetic . | . . . . . . . . . . . . . . . . . . . . . . Secondary . | . . . . . . . . . . . . . . . . . . . . . . Self-Inflicted Damage 193 | . . . . . . . . . . . . . . 100 . . 93 . . . . Shots 1 | . . . . . . . . . . . . . . . . . 1 . . . . Rammed . | . . . . . . . . . . . . . . . . . . . . . . Targets Rammed . | . . . . . . . . . . . . . . . . . . . . . . Kicked . | . . . . . . . . . . . . . . . . . . . . . . Crushed . | . . . . . . . . . . . . . . . . . . . . . . Highest Temperature 923 | . . . . . . . . . . . . 9 . 190 1 . 80 . . . 923 Average Temperature 243 | . . . . . . . . . . . . 9 . 97 1 . 25 . . . 288 Received Heat Transfer 1678 | . 219 . 171 162 18 . 117 204 . 12 . 120 177 78 103 22 129 18 . . 128 Effects 13 | . . . . . . . . . . . . . . . . . . . . . 13 Shutdowns 3 | . . . . . . . . . . . . . . . . . . . . . 3 Energy Bleed 1 | . . . . . . . . . . . . . . . . . . . . . 1 Interference 3 | . . . . . . . . . . . . . . . . . . . . . 3 Matter Decay 2 | . . . . . . . . . . . . . . . . . . . . . 2 Short Circuit 3 | . . . . . . . . . . . . . . . . . . . . . 3 Damage (core) 1 | . . . . . . . . . . . . . . . . . . . . . 1 Siege Activations . | . . . . . . . . . . . . . . . . . . . . . . Robots Corrupted 1 | . . . . . . . . . . . . . . . . . 1 . . . . Combat Hostiles . | . . . . . . . . . . . . . . . . . . . . . . Parts Fried 3 | . . . . . . . . 2 . . . . . . . . 1 . . . . Impact Corruptions 5 | . . . . . . . . 5 . . . . . . . . . . . . . Robots Melted . | . . . . . . . . . . . . . . . . . . . . . . Combat Hostiles . | . . . . . . . . . . . . . . . . . . . . . . Parts Melted . | . . . . . . . . . . . . . . . . . . . . . . Heat Transferred 50 | . . . . . . . . . . . . . . . . . 50 . . . . Parts Sabotaged . | . . . . . . . . . . . . . . . . . . . . . . Parts Stolen . | . . . . . . . . . . . . . . . . . . . . . . Parts Stripped . | . . . . . . . . . . . . . . . . . . . . . . Power Chain Reactions 1 | . . . . . . . . . . . . . . . . . 1 . . . . Missiles Intercepted . | . . . . . . . . . . . . . . . . . . . . . . Alert | -11 -10 -10 -9 -9 -8 -7 -7 -7 -7 -7 -7 -6 -6 -6 -6 -6 -6 -5 -5 -5 -5 ------- Run | Scr Mat Min Mat Min Mat Fac Gar Fac Low Low Zio Pro Fac Ext Cet Arc Hub Fac Upp Upp War Peak Influence 1555 | 10 378 166 840 596 660 337 756 781 . . . . 506 502 776 525 1555 940 . . . Initial 769 | . 6 96 64 252 117 300 244 396 . . . . 122 247 228 310 183 769 . . . Average 421 | 3 164 153 473 418 409 311 515 448 . . . . 280 324 550 472 999 727 . . . Maximum Alert Level 4 | . 1 . 3 2 2 1 3 3 . . . . 2 2 3 2 4 3 . . . Low Security (%) 18 | 100 55 100 17 . 14 . . 12 . . . . 32 8 . . 2 . . . . Level 1 34 | . 44 . 12 48 27 100 24 30 . . . . 48 67 42 20 2 . . . . Level 2 33 | . . . 57 51 58 . 52 51 . . . . 18 23 18 79 28 32 . . . Level 3 11 | . . . 12 . . . 22 5 . . . . . . 39 . 18 67 . . . Level 4 2 | . . . . . . . . . . . . . . . . . 47 . . . . Level 5 . | . . . . . . . . . . . . . . . . . . . . . . High Security . | . . . . . . . . . . . . . . . . . . . . . . Max Security . | . . . . . . . . . . . . . . . . . . . . . . Squads Dispatched 45 | . 5 . 7 . 2 . . 5 . . . . 8 4 1 . 10 3 . . . Investigation 26 | . 4 . 5 . . . . 4 . . . . 5 3 1 . 2 2 . . . Extermination 2 | . . . . . . . . 1 . . . . 1 . . . . . . . . Reinforcement 16 | . 1 . 2 . 2 . . . . . . . 2 1 . . 7 1 . . . Assault . | . . . . . . . . . . . . . . . . . . . . . . Garrison 1 | . . . . . . . . . . . . . . . . . 1 . . . . Intercept . | . . . . . . . . . . . . . . . . . . . . . . Searches Triggered 1 | . . . . . . . . . . . . . 1 . . . . . . . . Construction Impeded 1 | . . . . . . . . . . . . . . . . . 1 . . . . Haulers Reinforced . | . . . . . . . . . . . . . . . . . . . . . . Active Scanning Responses . | . . . . . . . . . . . . . . . . . . . . . . Cargo Convoy Interrupts . | . . . . . . . . . . . . . . . . . . . . . . Stealth | -11 -10 -10 -9 -9 -8 -7 -7 -7 -7 -7 -7 -6 -6 -6 -6 -6 -6 -5 -5 -5 -5 --------- Run | Scr Mat Min Mat Min Mat Fac Gar Fac Low Low Zio Pro Fac Ext Cet Arc Hub Fac Upp Upp War Distress Signals 18 | . 2 . 2 . 2 . . . . . . . . 1 2 . 5 4 . . . Communications Jammed 3 | . . . . . . . . 3 . . . . . . . . . . . . . Distress Signals 2 | . . . . . . . . 2 . . . . . . . . . . . . . Times Spotted 401 | . 27 5 52 15 21 1 19 28 1 2 29 10 29 27 16 4 33 28 4 10 40 Peak Tracking Total 41 | . 4 3 6 3 9 1 4 3 1 2 16 4 5 5 5 3 9 8 4 6 41 Tactical Retreats 34 | . 3 . 4 3 1 . 2 . . . 4 1 6 . . . 1 6 . 3 . Traps | -11 -10 -10 -9 -9 -8 -7 -7 -7 -7 -7 -7 -6 -6 -6 -6 -6 -6 -5 -5 -5 -5 ------- Run | Scr Mat Min Mat Min Mat Fac Gar Fac Low Low Zio Pro Fac Ext Cet Arc Hub Fac Upp Upp War Traps Triggered 21 | . 4 . . . . . 2 3 . . . . 5 . . . . 1 . . 6 Indirectly . | . . . . . . . . . . . . . . . . . . . . . . Trap Hack Attempts . | . . . . . . . . . . . . . . . . . . . . . . Triggered . | . . . . . . . . . . . . . . . . . . . . . . Disarmed . | . . . . . . . . . . . . . . . . . . . . . . Reprogrammed . | . . . . . . . . . . . . . . . . . . . . . . Reused . | . . . . . . . . . . . . . . . . . . . . . . Traps Extracted . | . . . . . . . . . . . . . . . . . . . . . . Installed . | . . . . . . . . . . . . . . . . . . . . . . Triggered . | . . . . . . . . . . . . . . . . . . . . . . Machines | -11 -10 -10 -9 -9 -8 -7 -7 -7 -7 -7 -7 -6 -6 -6 -6 -6 -6 -5 -5 -5 -5 ---------- Run | Scr Mat Min Mat Min Mat Fac Gar Fac Low Low Zio Pro Fac Ext Cet Arc Hub Fac Upp Upp War Machines Disabled 16 | . . . . . . . 1 1 . . 1 1 . 2 . 3 6 . . . 1 Max in Single Turn 2 | . . . . . . . 1 1 . . 1 1 . 1 . . 2 . . . 1 Garrison Access 4 | . . . . . . . . 1 . . . . . . . . 2 1 . . . Garrison Relay 2 | . . . . . . . 2 . . . . . . . . . . . . . . Network Hub 1 | . . . . . . . . . . . . . . . . . 1 . . . . Machines Sabotaged . | . . . . . . . . . . . . . . . . . . . . . . Garrisons Compromised . | . . . . . . . . . . . . . . . . . . . . . . Overloaded Fab Kills . | . . . . . . . . . . . . . . . . . . . . . . Hacking | -11 -10 -10 -9 -9 -8 -7 -7 -7 -7 -7 -7 -6 -6 -6 -6 -6 -6 -5 -5 -5 -5 --------- Run | Scr Mat Min Mat Min Mat Fac Gar Fac Low Low Zio Pro Fac Ext Cet Arc Hub Fac Upp Upp War Machines Accessed 90 | . 8 1 14 1 5 2 . 16 1 . . . 9 10 1 . 8 12 . 2 . Terminals 68 | . 6 . 10 1 5 1 . 12 . . . . 7 8 1 . 6 10 . 1 . Fabricators 1 | . . . . . . . . 1 . . . . . . . . . . . . . Repair Stations 3 | . . . 2 . . . . 1 . . . . . . . . . . . . . Recycling Units 10 | . 2 . 2 . . . . 1 . . . . 2 2 . . . 1 . . . Scanalyzers . | . . . . . . . . . . . . . . . . . . . . . . Garrison Access 5 | . . . . . . 1 . 1 . . . . . . . . 2 1 . . . Total Hacks 266 | . 23 1 37 5 20 4 . 48 1 . . . 23 26 6 . 23 41 . 8 . Successful 132 | . 13 1 25 2 14 1 . 21 1 . . . 11 13 1 . 8 13 . 8 . Failed 134 | . 10 . 12 3 6 3 . 27 . . . . 12 13 5 . 15 28 . . . Catastrophic 31 | . . . 2 1 1 . . 4 . . . . 4 3 1 . 4 11 . . . Database Lockouts . | . . . . . . . . . . . . . . . . . . . . . . Manual 154 | . 19 . 23 5 11 . . 19 . . . 1 10 17 1 . 14 34 . . . Terminals 235 | . 20 . 30 5 20 3 . 40 . . . . 21 24 6 . 21 38 . 7 . Fabricators 2 | . . . . . . . . 2 . . . . . . . . . . . . . Repair Stations 9 | . . . 5 . . . . 4 . . . . . . . . . . . . . Recycling Units 12 | . 3 . 2 . . . . 1 . . . . 2 2 . . . 2 . . . Scanalyzers . | . . . . . . . . . . . . . . . . . . . . . . Garrison Access 5 | . . . . . . 1 . 1 . . . . . . . . 2 1 . . . Terminal Hacks 78 | . 6 1 12 2 12 . . 11 1 . . . 8 6 1 . 4 6 . 8 . Record 8 | . . . . . . . . . . . . . . . . . . . . 8 . Robot Analysis 9 | . 3 . . . 4 . . 1 . . . . . . . . . 1 . . . Prototype ID Bank 15 | . 1 . 3 . 3 . . 3 . . . . 3 . . . 1 1 . . . Open Door 5 | . . 1 . . . . . . 1 . . . . 2 1 . . . . . . Level Access Points 2 | . . . . . 1 . . . . . . . . . . . 1 . . . . Branch Access Points 2 | . . . . . 1 . . 1 . . . . . . . . . . . . . Machine Index 1 | . . . . . . . . . . . . . . . . . 1 . . . . Terminal Index 5 | . . . 1 . 1 . . 1 . . . . . 1 . . . 1 . . . Garrison Index 1 | . . . . . . . . 1 . . . . . . . . . . . . . Alert Level 3 | . . . 2 . 1 . . . . . . . . . . . . . . . . Unreport Threat 19 | . 2 . 4 2 . . . 3 . . . . 2 2 . . 1 3 . . . Transport Status 1 | . . . 1 . . . . . . . . . . . . . . . . . . Reinforcement Status 2 | . . . 1 . . . . . . . . . . 1 . . . . . . . Hauler Manifests 3 | . . . . . 1 . . . . . . . 2 . . . . . . . . Zone Layout 2 | . . . . . . . . 1 . . . . 1 . . . . . . . . Fabricator Hacks 2 | . . . . . . . . 2 . . . . . . . . . . . . . Network Status 1 | . . . . . . . . 1 . . . . . . . . . . . . . Build 1 | . . . . . . . . 1 . . . . . . . . . . . . . Repair Station Hacks 6 | . . . 4 . . . . 2 . . . . . . . . . . . . . Scan Component 3 | . . . 2 . . . . 1 . . . . . . . . . . . . . Repair 3 | . . . 2 . . . . 1 . . . . . . . . . . . . . Recycling Unit Hacks . | . . . . . . . . . . . . . . . . . . . . . . Scanalyzer . | . . . . . . . . . . . . . . . . . . . . . . Garrison Access Hacks 5 | . . . . . . 1 . 1 . . . . . . . . 2 1 . . . Unlock Access 1 | . . . . . . 1 . . . . . . . . . . . . . . . Seal Access 4 | . . . . . . . . 1 . . . . . . . . 2 1 . . . Unauthorized Hacks 41 | . 7 . 9 . 2 . . 5 . . . . 3 7 . . 2 6 . . . Terminals 31 | . 5 . 7 . 2 . . 4 . . . . 1 5 . . 2 5 . . . Track 1 | . 1 . . . . . . . . . . . . . . . . . . . . Assimilate 9 | . . . 2 . . . . 3 . . . . 1 1 . . 1 1 . . . Botnet 18 | . 3 . 5 . 1 . . 1 . . . . . 3 . . 1 4 . . . Operators 3 | . 1 . . . 1 . . . . . . . . 1 . . . . . . . Fabricators . | . . . . . . . . . . . . . . . . . . . . . . Repair Stations . | . . . . . . . . . . . . . . . . . . . . . . Recycling Units 10 | . 2 . 2 . . . . 1 . . . . 2 2 . . . 1 . . . Tunnel 10 | . 2 . 2 . . . . 1 . . . . 2 2 . . . 1 . . . Scanalyzers . | . . . . . . . . . . . . . . . . . . . . . . Garrison Access . | . . . . . . . . . . . . . . . . . . . . . . Data Cores Recovered 2 | . . . 1 . . . . . . . . . 1 . . . . . . . . Used 1 | . . . . . . . . . . . . . 1 . . . . . . . . Hacking Detections 60 | . 5 . 8 1 5 1 . 14 . . . . 6 5 1 . 5 8 . 1 . Full Trace Events 17 | . 2 . 4 . . . . 3 . . . . 3 1 1 . 2 1 . . . Feedback Events . | . . . . . . . . . . . . . . . . . . . . . . Feedback Blocked . | . . . . . . . . . . . . . . . . . . . . . . Robot Schematics Acquired 3 | . . . . . . . . . . . 3 . . . . . . . . . . Robots Built . | . . . . . . . . . . . . . . . . . . . . . . Authchips . | . . . . . . . . . . . . . . . . . . . . . . Time . | . . . . . . . . . . . . . . . . . . . . . . Total Robot Build Rating . | . . . . . . . . . . . . . . . . . . . . . . Part Schematics Acquired 16 | . . . . . . . . . . . 16 . . . . . . . . . . Parts Built 1 | . . . . . . . . 1 . . . . . . . . . . . . . Authchips . | . . . . . . . . . . . . . . . . . . . . . . Time 53 | . . . . . . . . 53 . . . . . . . . . . . . . Total Part Build Rating 6 | . . . . . . . . 6 . . . . . . . . . . . . . Parts Repaired 3 | . . . 2 . . . . 1 . . . . . . . . . . . . . Time 83 | . . . 64 . . . . 19 . . . . . . . . . . . . . Parts Recycled . | . . . . . . . . . . . . . . . . . . . . . . Recycled Matter . | . . . . . . . . . . . . . . . . . . . . . . Retrieved Matter . | . . . . . . . . . . . . . . . . . . . . . . Retrieved Components . | . . . . . . . . . . . . . . . . . . . . . . Parts Scanalyzed . | . . . . . . . . . . . . . . . . . . . . . . Part Schematics Acquired . | . . . . . . . . . . . . . . . . . . . . . . Parts Damaged . | . . . . . . . . . . . . . . . . . . . . . . Bothacking | -11 -10 -10 -9 -9 -8 -7 -7 -7 -7 -7 -7 -6 -6 -6 -6 -6 -6 -5 -5 -5 -5 ------------ Run | Scr Mat Min Mat Min Mat Fac Gar Fac Low Low Zio Pro Fac Ext Cet Arc Hub Fac Upp Upp War Used RIF Installer 1 | . . . . . . . 1 . . . . . . . . . . . . . . Robots Hacked . | . . . . . . . . . . . . . . . . . . . . . . Non-combat . | . . . . . . . . . . . . . . . . . . . . . . Combat . | . . . . . . . . . . . . . . . . . . . . . . Robot Hacks Applied . | . . . . . . . . . . . . . . . . . . . . . . Relay Couplers Released 4 | . . . . . . . 3 . . . . . . . . . 1 . . . . Machine Destruction 4 | . . . . . . . 3 . . . . . . . . . 1 . . . . Attached 1 | . . . . . . . . 1 . . . . . . . . . . . . . Fabnet Peak Effective % . | . . . . . . . . . . . . . . . . . . . . . . Robots Rewired 14 | . . . . . . . . . . . . . . 14 . . . . . . . Allies Hacked . | . . . . . . . . . . . . . . . . . . . . . . Hacks Repelled . | . . . . . . . . . . . . . . . . . . . . . . Allies | -11 -10 -10 -9 -9 -8 -7 -7 -7 -7 -7 -7 -6 -6 -6 -6 -6 -6 -5 -5 -5 -5 -------- Run | Scr Mat Min Mat Min Mat Fac Gar Fac Low Low Zio Pro Fac Ext Cet Arc Hub Fac Upp Upp War Total Allies 28 | . . . . . . . . 3 . . . . . 19 5 . . 1 . . . Largest Group 11 | . . . . . . . . 1 . . . . . 8 11 11 9 1 . . . Highest-Rated Group 782 | . . . . . . . . 10 . . . . . 356 782 782 530 26 . . . Highest-Rated Ally 159 | . . . . . . . . 10 . . . . . 159 159 156 96 26 . . . Total Orders 2 | . . 1 . . . . . . . . . . . . . . . 1 . . . STAY 1 | . . . . . . . . . . . . . . . . . . 1 . . . RETURN 1 | . . 1 . . . . . . . . . . . . . . . . . . . Ally Attacks 274 | . . . . . . . . . . . . . . 89 61 24 100 . . . . Total Damage 7514 | . . . . . . . . . . . . . . 2169 1305 688 3352 . . . . Kills 44 | . . . . . . . . . . . . . . 13 6 1 24 . . . . Allies Corrupted . | . . . . . . . . . . . . . . . . . . . . . . Allies Melted 1 | . . . . . . . . . . . . . . . . . 1 . . . . Intel | -11 -10 -10 -9 -9 -8 -7 -7 -7 -7 -7 -7 -6 -6 -6 -6 -6 -6 -5 -5 -5 -5 ------- Run | Scr Mat Min Mat Min Mat Fac Gar Fac Low Low Zio Pro Fac Ext Cet Arc Hub Fac Upp Upp War Robot Analysis Total 9 | . 3 . . . 4 . . 1 . . . . . . . . . 1 . . . Derelict Logs Recovered 8 | . . 1 . 1 . . . . 2 . 1 1 . . . . . . 2 . . Drone Launches 1 | . . 1 . . . . . . . . . . . . . . . . . . . Drone Recoveries 1 | . . 1 . . . . . . . . . . . . . . . . . . . Exploration | -11 -10 -10 -9 -9 -8 -7 -7 -7 -7 -7 -7 -6 -6 -6 -6 -6 -6 -5 -5 -5 -5 ------------- Run | Scr Mat Min Mat Min Mat Fac Gar Fac Low Low Zio Pro Fac Ext Cet Arc Hub Fac Upp Upp War Turns Passed 7716 | 48 790 124 892 327 310 73 354 867 108 58 303 309 725 937 291 64 301 476 141 78 140 Spaces Moved 12806 | 40 797 204 1238 445 632 166 469 1816 353 193 625 479 1332 966 382 76 518 1054 378 281 362 Core 630 | 40 588 . . . . . . . . . . . . 2 . . . . . . . Treads . | . . . . . . . . . . . . . . . . . . . . . . Legs . | . . . . . . . . . . . . . . . . . . . . . . Wheels . | . . . . . . . . . . . . . . . . . . . . . . Hover 29 | . 29 . . . . . . . . . . . . . . . . . . . . Flight 12147 | . 180 204 1238 445 632 166 469 1816 353 193 625 479 1332 964 382 76 518 1054 378 281 362 Fastest Speed 26 | 50 37 37 29 29 29 29 30 26 26 26 26 26 26 26 26 26 26 26 26 26 26 Average Speed 29 | 51 56 37 30 29 29 29 30 26 26 26 26 26 26 26 26 26 26 26 26 26 27 Slowest Speed 109 | 100 100 37 37 29 109 30 30 32 26 26 26 26 26 100 26 26 26 26 26 26 106 Overloaded Moves . | . . . . . . . . . . . . . . . . . . . . . . Propulsion Burnouts . | . . . . . . . . . . . . . . . . . . . . . . Robots Hopped 68 | . . 5 1 2 . . . 4 . . . . 4 11 . . 5 16 . . 20 Cave-ins Triggered 2 | . . . . . . . . 1 . . . . 1 . . . . . . . . Exploration Rate (%) 55 | 4 79 36 86 80 55 6 41 65 56 47 39 59 46 88 89 74 55 34 69 59 61 Regions Visited 21 Branch Regions 13 Pre-discovered Areas 13 | . 2 . 2 2 . . . 1 . . . . 2 2 . . . 1 . 1 . Known Exits Taken 15 | . . . . . 1 1 . 1 1 1 1 1 1 1 1 1 1 1 1 1 . Unknown Exits Taken 5 | 1 1 1 1 1 . . . . . . . . . . . . . . . . . Scrap Searched 11 | . . 1 . . . . . . 3 2 1 . . . . . . . 2 2 . Spaces Dug 85 | . . . 5 4 3 . 2 11 2 1 1 2 25 . . . 7 9 2 2 9 Terrain Destroyed 250 | . . . 5 4 3 . 2 11 2 1 1 2 25 1 . . 171 9 2 2 9 Melee 85 | . . . 5 4 3 . 2 11 2 1 1 2 25 . . . 7 9 2 2 9 Projectile . | . . . . . . . . . . . . . . . . . . . . . . AOE 164 | . . . . . . . . . . . . . . . . . 164 . . . . Terrain Rammed 1 | . . . . . . . . . . . . . . 1 . . . . . . . Walls Destroyed 1 | . . . . . . . . . . . . . . 1 . . . . . . . Machines Disabled . | . . . . . . . . . . . . . . . . . . . . . . Actions | -11 -10 -10 -9 -9 -8 -7 -7 -7 -7 -7 -7 -6 -6 -6 -6 -6 -6 -5 -5 -5 -5 --------- Run | Scr Mat Min Mat Min Mat Fac Gar Fac Low Low Zio Pro Fac Ext Cet Arc Hub Fac Upp Upp War Total 15867 | 54 1020 232 1595 573 705 189 645 2111 363 197 741 642 1608 1608 559 113 645 1208 414 282 363 Wait 1564 | . 80 19 177 38 7 . 59 116 . . 60 120 144 448 93 28 22 123 30 . . Move 12666 | 39 796 193 1235 440 631 166 468 1807 352 192 624 478 1323 950 381 75 509 1023 377 280 327 Hop 50 | . . 5 1 2 . . . 4 . . . . 4 4 . . 3 13 . . 14 Pick Up 40 | . 4 1 8 6 2 2 2 3 . . . 1 1 3 4 . 3 . . . . Fast Attach 81 | 4 12 1 10 . 11 4 4 12 2 1 2 1 3 5 1 . 3 5 . . . Attach 17 | . 1 1 3 . 1 1 1 2 . . 2 . . 4 1 . . . . . . Detach 25 | . 4 1 4 . 5 3 . 1 . . 1 . 1 2 1 . . . . . 2 Swap 23 | . . 1 5 2 1 1 2 3 . . . . 2 . . . 2 2 1 . 1 Drop 91 | . 8 1 11 6 10 5 3 16 2 . 2 1 3 4 5 . 6 6 1 . 1 Fire 116 | 11 95 7 1 . . . . . . . . . . . . . 2 . . . . Melee 657 | . . . 101 48 32 3 45 78 5 4 50 34 83 31 28 10 54 27 5 2 17 Ram 1 | . . . . . . . . . . . . . . 1 . . . . . . . Kick . | . . . . . . . . . . . . . . . . . . . . . . Crush . | . . . . . . . . . . . . . . . . . . . . . . Escape Stasis 92 | . . . . . . . 35 36 . . . . 19 . . . . 1 . . 1 Rewire 99 | . . . . . . . . . . . . . . 99 . . . . . . . Trap . | . . . . . . . . . . . . . . . . . . . . . . Miscellaneous 345 | . 20 2 39 31 5 4 26 33 2 . . 7 25 57 45 . 41 8 . . . Route ------- -11/Scrapyard -10/Materials (discovered 5 exits: *Mat x3 / *Min x2) -10/Mines -9/Materials (discovered 7 exits: *Mat x3 / *Min x2 / [*Sto x2]) -9/Mines (discovered 2 exits: *Mat / *Zio) -8/Materials (discovered 3 exits: *Fac x3) -7/Factory -7/Garrison -7/Factory (discovered 5 exits: *Fac x3 / *Low x2) -7/Lower Caves -7/Lower Caves (discovered 2 exits: *Fac / *Zio) -7/Zion -6/Proximity Caves -6/Factory (discovered 5 exits: *Fac x2 / *Low x2 / *Ext) -6/Extension (discovered 2 exits: *Fac / *Cet) -6/Cetus (discovered 3 exits: *Fac x2 / *Arc) -6/Archives (discovered 2 exits: *Fac / *Hub) -6/Hub_04(d) (discovered 4 exits: *Fac x4) -5/Factory (discovered 2 exits: *Fac / *Upp) -5/Upper Caves -5/Upper Caves (discovered 2 exits: *Fac / *War) -5/Warlord (discovered 1 exit: [*Pro]) History --------- Turn | Location | Event 5 | -11/Scrapyard | Discovered new exit (range 13) 49 | -11/Scrapyard | Entered Materials 186 | -10/Materials | Discovered new exit (range 12) 191 | -10/Materials | Discovered new exit (range 16) 312 | -10/Materials | Build established: Scout 463 | -10/Materials | Discovered new exit (range 16) 490 | -10/Materials | Reached level 2 493 | -10/Materials | Upgraded with Propulsion slot (x1) 493 | -10/Materials | Upgraded with Utility slot (x1) 493 | -10/Materials | Upgraded with Weapon slot (x1) 531 | -10/Materials | Discovered new exit (range 15) 562 | -10/Materials | Discovered new exit (range 13) 839 | -10/Materials | Entered Mines 841 | -10/Mines | Reached level 3 841 | -10/Mines | Upgraded with Utility slot (x1) 888 | -10/Mines | Found the Drone Emporium 890 | -10/Mines | Found Prototype Device 890 | -10/Mines | Identified Splice Drone Bay 907 | -10/Mines | A weapon hastily lodged in a ceiling crevice suddenly fell to the ground 923 | -10/Mines | Assembled infested the area 935 | -10/Mines | Learned Materials interactive machine intel 935 | -10/Mines | Discovered new exit (range 9) 963 | -10/Mines | Entered Materials 964 | -9/Materials | Loaded intel: 18 interactive machine locations 965 | -9/Materials | Reached level 4 965 | -9/Materials | Upgraded with Utility slot (x1) 1009 | -9/Materials | Repaired Imp. Terrain Scanner 1119 | -9/Materials | Discovered new exit (range 5) 1185 | -9/Materials | Reached level 5 1185 | -9/Materials | Upgraded with Propulsion slot (x1) 1185 | -9/Materials | Upgraded with Weapon slot (x1) 1226 | -9/Materials | Discovered new exit (range 16) 1263 | -9/Materials | Discovered new exit (range 9) 1329 | -9/Materials | Repaired Weapon Shielding 1439 | -9/Materials | Reached level 6 1451 | -9/Materials | Upgraded with Utility slot (x1) 1568 | -9/Materials | Discovered new exit (range 14) 1633 | -9/Materials | Discovered new exit (range 3) 1691 | -9/Materials | Reached level 7 1731 | -9/Materials | Discovered new exit (range 6) 1795 | -9/Materials | Discovered new exit (range 15) 1855 | -9/Materials | Entered Mines 1856 | -9/Mines | Learned location of Storage (-9) 1857 | -9/Mines | Reached level 8 2021 | -9/Mines | Build established: Hacker-Scout 2092 | -9/Mines | Discovered new exit (range 13) 2179 | -9/Mines | A Derelict revealed a hidden shortcut to a safe place 2182 | -9/Mines | Entered Materials 2184 | -8/Materials | Reached level 9 2288 | -8/Materials | Reached level 10 2296 | -8/Materials | Upgraded with Utility slot (x1) 2471 | -8/Materials | Identified exit to Factory 2492 | -8/Materials | Entered Factory 2494 | -7/Factory | Reached level 11 2565 | -7/Factory | Identified exit to Garrison 2565 | -7/Factory | Entered Garrison 2567 | -7/Garrison | Reached level 12 2567 | -7/Garrison | Installed Relay Interface Framework 2578 | -7/Garrison | Triggered checkpoint 2735 | -7/Garrison | Garrison Relay disabled 2740 | -7/Garrison | Reached level 13 2741 | -7/Garrison | Upgraded with Utility slot (x1) 2768 | -7/Garrison | Triggered checkpoint 2797 | -7/Garrison | Garrison Relay disabled 2820 | -7/Garrison | Build established: Hacker-Ninja 2866 | -7/Garrison | Triggered checkpoint 2916 | -7/Garrison | Discovered new exit (range 11) 2919 | -7/Garrison | Identified exit to Factory 2919 | -7/Garrison | Entered Factory 2965 | -7/Factory | Reached level 14 3125 | -7/Factory | Upgraded with Propulsion slot (x1) 3238 | -7/Factory | Crushed by falling debris 3238 | -7/Factory | Core integrity fell below 50% 3322 | -7/Factory | Discovered new exit (range 17) 3351 | -7/Factory | Discovered new exit (range 15) 3466 | -7/Factory | Repaired Insulated Plating 3525 | -7/Factory | Reached level 15 3525 | -7/Factory | Upgraded with Utility slot (x1) 3635 | -7/Factory | Fabricated Imp. Powered Armor (x1) 3648 | -7/Factory | Identified exit to Lower Caves 3757 | -7/Factory | Discovered new exit (range 6) 3761 | -7/Factory | Identified exit to Factory 3768 | -7/Factory | Build established: Hacker-Scout 3786 | -7/Factory | Entered Lower Caves 3797 | -7/Lower Caves | Encountered a Warlord checkpoint 3891 | -7/Lower Caves | Discovered new exit (range 9) 3893 | -7/Lower Caves | Identified exit to Lower Caves 3894 | -7/Lower Caves | Entered another Lower Caves area 3896 | -7/Lower Caves | Discovered exit to Factory (range 10) 3901 | -7/Lower Caves | Encountered a Warlord checkpoint 3914 | -7/Lower Caves | Spotted B-75 Beast 3951 | -7/Lower Caves | Discovered new exit (range 5) 3952 | -7/Lower Caves | Identified exit to Zion 3952 | -7/Lower Caves | Entered Zion 3991 | -7/Zion | Discovered new exit (range 12) 4017 | -7/Zion | RIF detected upon attempting to enter Zion 4017 | -7/Zion | Attacked by Zionites 4017 | -7/Zion | Spotted BG-V8H(B) 4017 | -7/Zion | Spotted 61-4I2(B) 4104 | -7/Zion | Destroyed 61-4I2(B) 4133 | -7/Zion | Destroyed BG-V8H(B) 4202 | -7/Zion | Learned Factory emergency access door positions 4255 | -7/Zion | Identified exit to Proximity Caves 4255 | -7/Zion | Entered Proximity Caves 4257 | -6/Proximity Caves | Reached level 16 4263 | -6/Proximity Caves | Acquired the password to a Derelict Tinkerer's latest research 4263 | -6/Proximity Caves | Found Prototype Special Weapon 4272 | -6/Proximity Caves | Learned Factory garrison access intel 4278 | -6/Proximity Caves | Spotted B-75 Beast 4307 | -6/Proximity Caves | Core integrity fell below 20% 4312 | -6/Proximity Caves | Destroyed B-75 Beast 4502 | -6/Proximity Caves | Caught by Unaware searching for contraband prototypes 4518 | -6/Proximity Caves | Reached level 17 4550 | -6/Proximity Caves | Caught by Unaware searching for contraband prototypes 4560 | -6/Proximity Caves | Discovered exit to Factory (range 15) 4564 | -6/Proximity Caves | Entered Factory 4565 | -6/Factory | Identified exit to Extension 4565 | -6/Factory | Core integrity fell below 50% 4567 | -6/Factory | Loaded intel: 3 garrison access locations 4640 | -6/Factory | Crushed by falling debris 4643 | -6/Factory | Discovered new exit (range 10) 4728 | -6/Factory | Reached level 18 4914 | -6/Factory | Search patrols dispatched 4919 | -6/Factory | Core integrity fell below 20% 4967 | -6/Factory | Discovered new exit (range 6) 4969 | -6/Factory | Identified exit to Lower Caves 5059 | -6/Factory | Spotted B-75 Beast 5085 | -6/Factory | Discovered exit to Lower Caves (range 17) 5232 | -6/Factory | Discovered new exit (range 17) 5242 | -6/Factory | Identified exit to Factory 5289 | -6/Factory | Entered Extension 5291 | -6/Extension | Reached level 19 5439 | -6/Extension | Rescued A7 5556 | -6/Extension | Lost 3 parts (1n2u) 5821 | -6/Extension | Build established: Commander-Sprinter 5899 | -6/Extension | Spotted B-75 Beast 5917 | -6/Extension | Allies destroyed B-75 Beast 5918 | -6/Extension | Spotted B-75 Beast 5955 | -6/Extension | Destroyed B-75 Beast 5988 | -6/Extension | Reached level 20 5989 | -6/Extension | Upgraded with Utility slot (x1) 6023 | -6/Extension | Rescued a captive Derelict 6024 | -6/Extension | Rescued a captive Derelict 6054 | -6/Extension | Rescued a captive Derelict 6187 | -6/Extension | Discovered exit to Factory (range 10) 6187 | -6/Extension | Discovered new exit (range 6) 6189 | -6/Extension | Identified exit to Cetus 6226 | -6/Extension | Entered Cetus 6226 | -6/Cetus | Accompanied by 7 allies (A7) 6231 | -6/Cetus | Acquired a Cetus Manufacturing Module code from A7 6238 | -6/Cetus | Spotted Cetus Guard 6238 | -6/Cetus | Spotted Cetus Guard 6239 | -6/Cetus | Spotted Cetus Guard 6242 | -6/Cetus | Spotted Cetus Guard 6252 | -6/Cetus | Destroyed Cetus Guard 6255 | -6/Cetus | Destroyed Cetus Guard 6257 | -6/Cetus | Allies destroyed Cetus Guard 6259 | -6/Cetus | Allies destroyed Cetus Guard 6301 | -6/Cetus | Discovered exit to Factory (range 16) 6321 | -6/Cetus | Started Cetus Manufacturing Module 6344 | -6/Cetus | Escorted A7 to Cetus Mainframe 6346 | -6/Cetus | Manufactured an Enhanced Grunt 6349 | -6/Cetus | Discovered new exit (range 17) 6371 | -6/Cetus | Manufactured an Enhanced Grunt 6382 | -6/Cetus | Spotted Cetus Guard 6382 | -6/Cetus | Spotted Cetus Guard 6383 | -6/Cetus | Spotted Cetus Guard 6384 | -6/Cetus | Discovered exit to Factory (range 17) 6384 | -6/Cetus | Spotted Cetus Guard 6393 | -6/Cetus | Destroyed Cetus Guard 6395 | -6/Cetus | Destroyed Cetus Guard 6396 | -6/Cetus | Manufactured an Enhanced Grunt 6402 | -6/Cetus | Destroyed Cetus Guard 6407 | -6/Cetus | Allies destroyed Cetus Guard 6408 | -6/Cetus | Met Revision 17 6421 | -6/Cetus | Manufactured an Enhanced Grunt 6446 | -6/Cetus | Manufactured an Enhanced Grunt 6494 | -6/Cetus | Identified exit to Archives 6517 | -6/Cetus | Entered Archives 6517 | -6/Archives | Accompanied by 11 allies (A7) 6522 | -6/Archives | Received a hacking code to weaken MAIN.C 6526 | -6/Archives | Discovered exit to Factory (range 13) 6534 | -6/Archives | Discovered new exit (range 13) 6542 | -6/Archives | Reached level 21 6547 | -6/Archives | Unable to access archive contents 6553 | -6/Archives | Identified exit to Hub_04(d) 6581 | -6/Archives | Entered Hub_04(d) 6581 | -6/Hub_04(d) | Accompanied by 9 allies 6722 | -6/Hub_04(d) | Garrison activated, responded to threat 6813 | -6/Hub_04(d) | Network Hub disabled 6834 | -6/Hub_04(d) | Spotted Lightning 6838 | -6/Hub_04(d) | Spotted Lightning 6849 | -6/Hub_04(d) | Destroyed Lightning 6866 | -6/Hub_04(d) | Found Prototype Device 6866 | -6/Hub_04(d) | Identified Exp. Phase Shifter 6869 | -6/Hub_04(d) | Found Prototype Energy Cannon 6882 | -6/Hub_04(d) | Entered Factory 6883 | -5/Factory | Identified exit to Upper Caves 6884 | -5/Factory | Reached level 22 6901 | -5/Factory | Spotted B-75 Beast 6939 | -5/Factory | Discovered new exit (range 11) 6941 | -5/Factory | Assembled infested ambush trap array 6945 | -5/Factory | Identified exit to Factory 7291 | -5/Factory | Build established: Hacker-Sprinter 7358 | -5/Factory | Entered Upper Caves 7383 | -5/Upper Caves | Learned Factory stockpile data 7496 | -5/Upper Caves | Discovered new exit (range 14) 7497 | -5/Upper Caves | Learned Factory terminal intel 7499 | -5/Upper Caves | Identified exit to Upper Caves 7499 | -5/Upper Caves | Entered another Upper Caves area 7501 | -5/Upper Caves | Reached level 23 7503 | -5/Upper Caves | Discovered exit to Factory (range 8) 7549 | -5/Upper Caves | Learned location of Armory (-3) 7549 | -5/Upper Caves | Learned location of 1 exit from Proximity Caves 7549 | -5/Upper Caves | Learned Research stockpile data 7549 | -5/Upper Caves | Learned Research security intel 7574 | -5/Upper Caves | Discovered new exit (range 7) 7575 | -5/Upper Caves | Identified exit to Warlord 7577 | -5/Upper Caves | Entered Warlord 7584 | -5/Warlord | Discovered new exit (range 15) 7595 | -5/Warlord | RIF detected upon attempting to enter Warlord's base 7595 | -5/Warlord | Attacked by Warlord forces 7597 | -5/Warlord | Spotted L0-PRX(B) 7597 | -5/Warlord | Spotted S4-341(B) 7644 | -5/Warlord | Spotted P3-28L(L) 7667 | -5/Warlord | Spotted 5N-KOM(K) 7667 | -5/Warlord | Spotted P3-KFR(K) 7675 | -5/Warlord | Found Exp. Phase Shifter 7698 | -5/Warlord | Core integrity fell below 50% 7710 | -5/Warlord | Core integrity fell below 20% 7717 | -5/Warlord | Destroyed by God Mode with Slug Cannon Last Messages --------------- Cld. Cesium-ion Thruster broken. Overheating: Short circuit. Phasing Sabre follow-up attack on Warlord. Knocked back. Imp. Reaction Control System destroyed. Knocked back. Phasing Sabre follow-up attack on Warlord. Power failure, Lgt. Neutrino Core shutdown. Penetrated by HV Slug. HV Slug penetrates HO-0DS(Y). HO-0DS(Y) suffers critical hit (Destroy). Phasing Sabre follow-up attack on Warlord. Knocked back. Penetrated by Slug. Knocked back. Slug penetrates Reinforced Barrier. HO-0DS(Y) suffers critical hit (Destroy). HO-0DS(Y) destroyed. Acquired 6 matter. Lyr. Medium Armor Plating destroyed. Map ----- +----------------------------------------------------+ | | | | | | | | | | | ??????????????????????????????????????????????? | | ????????????????????????????########??????????? | | ????????????????##??????##### """""#??????????? | | ??????????####### ####### # "" ""#??????????? | | ????????# + ? ""############ | | ????????# ### # "##### # " "# | | ?????????????????#?#????##### X""" # ^ #??? | | ?????????????????# #????????######## #??? | | ?????????????????# #??????????????## #??? | | ?????????????????# #?????????????##"###### #??? | | ??????????##+#####+##?############"##????# #??? | | ??????????# #?# X# *!! #?????# #??? | | ??????????# #?# " =#?????# #??? | | ??????????# """" #?# " =#?????# #??? | | ??????????# """" #?# " =#?????# #??? | | ?????#????# """" #?# ; ! =#?????# #??? | | ?????# ???# """" #?# #########?????# #??? | | ????## ??# ? #?# GG """"""""#?????# #??? | | ????? ?# ? #?# GG "#?????# #??? | | ?????# ###/#####+####] "#?????# #??? | | ?????# Y Y g%g@%W "#?????# #??? | | ?????# ggL/!% ""#?????# #??? | | ?????# "gMY %/ "#?????# #??? | | ?????#+##### """ Y#### "#?????#?#??? | | ???????????# """Y #??# "#?????# #??? | | ???????????# ??#??#""""""""""""#?????# #??? | | ???????????# ??#??##############?????#?#??? | | ???????????# ??#?????????????????????#?#??? | | ???????????# ###?#######????????????????#?#### | | ???????????# # ? #????????????????# # | | ???????????# ?# ?? #????????????????#?# | | ??????????? ??# """"? #????#############?/ | | ?????????? ???# """" #????# / | | ????????? ????# """" ??#????# ? #### | | ????????#?????# """" ###### % #### | | ??????????????# ? ? ^ | | ??????????????# % ######/######## #"##### | | ??????????????###########????# #??????#####???? | | ?????????????????????????????"?X??????????????? | | ????????????????????????????#"?X"?????????????? | | ????????????????????????????#???"#?????###????? | | ????????????????????????????????"#?????#"###### | | ???????????????????????????????????????## | | ????????????????????????????????????????# | | ????????????????????????????????????????# | +----------------------------------------------------+ Best States ------------- Heat Dissipation 49 Energy Generation 49 Energy Capacity 280 Matter Stores 300 Matter Capacity 300 Sight Range 17 Robot Scan Range 26 Terrain Scan Range 16 Terrain Scan Density 510 Jamming Range 12 Additional Mass Support 9 Armor Coverage 550 Resistance: KI 20 Resistance: TH 5 Resistance: EM 15 Power Shielding 66 Propulsion Shielding 33 Utility Shielding 33 Weapon Shielding 33 Melee Speed Boost 40 Phase Shifting 20 Evasion (%) 94 Melee Accuracy 12 Force Boost 20 Salvage Targeting 1 Offensive Hacking 20 Defensive Hacking 10 Relay Coupler Types 1 Relay Coupler Value 60 Item Schematics ----------------- Tiamat Missile Launcher | -7/Zion | Archive System Guard | -7/Zion | Archive Med. Treads | -7/Zion | Archive Imp. Coolant Injector | -7/Zion | Archive Matter Filter | -7/Zion | Archive Stasis Canceller | -7/Zion | Archive Energy Filter | -7/Zion | Archive Lyr. Medium Armor Plating | -7/Zion | Archive Imp. Field Recycling Unit | -7/Zion | Archive Phase Shifter | -7/Zion | Archive Hvy. Laser | -7/Zion | Archive Imp. Shock Absorption System | -7/Zion | Archive Hpw. Shock Rifle | -7/Zion | Archive Mak. Power Source | -7/Zion | Archive Power Maul | -7/Zion | Archive Adv. Melee Analysis Suite | -7/Zion | Archive Robot Schematics ------------------ G-47 Trooper | -7/Zion | Archive K-01 Serf | -7/Zion | Archive L-41 Fighter | -7/Zion | Archive Fabricated ------------ Imp. Powered Armor | x1 | -7/Factory | Preloaded Alien Tech Used ----------------- None Achievements -------------- None Challenges ------------ None RPGLIKE | -11 -10 -10 -9 -9 -8 -7 -7 -7 -7 -7 -7 -6 -6 -6 -6 -6 -6 -5 -5 -5 -5 --------- Run | Scr Mat Min Mat Min Mat Fac Gar Fac Low Low Zio Pro Fac Ext Cet Arc Hub Fac Upp Upp War Levels Raised 22 | . 1 1 4 1 2 1 2 2 . . . 2 1 2 . 1 . 1 . 1 . XP Earned 36137 | 3000 2505 850 6708 1381 3231 1595 3024 2293 244 316 244 1838 2583 1920 927 358 1327 1236 269 170 118 XP Spent 34150 | 1850 2570 800 6550 1650 2600 1650 2800 3400 . . . 3080 700 3650 . . 1300 1550 . . . Upgrades 77 | 14 9 1 13 6 3 2 2 2 . . . 20 1 2 . . 1 1 . . . Propulsion Slot 3 | . 1 . 1 . . . . 1 . . . . . . . . . . . . . Utility Slot 8 | . 1 1 2 . 1 . 1 1 . . . . . 1 . . . . . . . Weapon Slot 2 | . 1 . 1 . . . . . . . . . . . . . . . . . . Core Integrity 18 | . . . . . . . . . . . . 18 . . . . . . . . . Heat Dissipation 4 | . 4 . . . . . . . . . . . . . . . . . . . . Energy Generation 6 | . . . . . 1 1 1 . . . . . . 1 . . 1 1 . . . Mass Support 3 | 1 . . . . 1 1 . . . . . . . . . . . . . . . Inventory Capacity 2 | . 2 . . . . . . . . . . . . . . . . . . . . Sight Range 1 | . . . 1 . . . . . . . . . . . . . . . . . . Sensor Range 13 | 8 . . . 5 . . . . . . . . . . . . . . . . . Terrain Scan Density 5 | 5 . . . . . . . . . . . . . . . . . . . . . Melee Accuracy 6 | . . . 3 . . . . . . . . 2 1 . . . . . . . . Hack Attack % 2 | . . . 2 . . . . . . . . . . . . . . . . . . Hack Defense % 2 | . . . 2 . . . . . . . . . . . . . . . . . . KI Resistance % 1 | . . . 1 . . . . . . . . . . . . . . . . . . TH Resistance % 1 | . . . . 1 . . . . . . . . . . . . . . . . . Protomatter Created 2254 | . 139 13 318 258 52 . 326 275 12 . . 53 189 202 130 . 169 118 . . . Integrity Restored 7085 | . 417 39 803 549 88 57 473 693 36 . . 159 567 1243 876 . 908 177 . . . Core 5906 | . 417 39 657 410 74 51 341 594 36 . . 159 567 1222 476 . 749 114 . . . Parts 1179 | . . . 146 139 14 6 132 99 . . . . . 21 400 . 159 63 . . . Protomatter Decayed 714 | . . . . 62 20 . 151 40 . . . . . . 32 . 351 58 . . . Game ------ Seed MasterDrainedLauncher Manual? 0 Play Time 02:49:37 Cumulative 305.2 hours Start 2022.04.21 @ 00:07:15 End 2022.04.21 @ 03:10:39 Sessions 1 Manual Loads 0 Difficulty Rogue Special Mode Winter2019/RPGLIKE Game No. 296 Rogue 296 Adventurer 0 Explorer 0 Win Type - Total 17 Types 11/0/4/2/0/0/0/0/0 Lore% 79 Gallery% 86 Achievement% 76 Wizard Run 0 Options --------- ASCII 0 Keyboard 1 Movement Numpad Keybinds 0 Fullscreen 1 Font 18/SmallcapsGlow Map View 76x50 Tactical HUD 1 Map Filters NONE Filters NONE Steam 1 RUN: be0ad309-1480-40dd-b774-d2c2dffa54e1